[Event "Late-Titled-Tuesday-Blitz-February-27-2024"]
[Site "Chess.com"]
[Date "2024.02.27"]
[Round "4"]
[White "HajiyevKanan"]
[Black "fidetrainerNET"]
[Result "0-1"]
[WhiteElo "2477"]
[BlackElo "2380"]
[TimeControl "180+1"]
[EndTime "14:40:24 PST"]
[Termination "fidetrainerNET won on time"]

1. d4 {[%clk 0:03:00.9]} 1... Nf6 {[%clk 0:02:56.7]} 2. Nf3 {[%clk 0:02:59.6]}
2... g6 {[%clk 0:02:57.1]} 3. g3 {[%clk 0:02:46.2]} 3... Bg7 {[%clk 0:02:56.7]}
4. Bg2 {[%clk 0:02:47.1]} 4... O-O {[%clk 0:02:56.3]} 5. O-O {[%clk 0:02:47.2]}
5... b6 {[%clk 0:02:55.4]} 6. b3 {[%clk 0:02:47.4]} 6... Bb7 {[%clk 0:02:54.8]}
7. Bb2 {[%clk 0:02:48.2]} 7... d5 {[%clk 0:02:54.1]} 8. e3 {[%clk 0:02:41.3]}
8... Nbd7 {[%clk 0:02:54.1]} 9. Nbd2 {[%clk 0:02:41.3]} 9... c5 {[%clk
0:02:52.2]} 10. a4 {[%clk 0:02:40]} 10... cxd4 {[%clk 0:02:51.7]} 11. exd4
{[%clk 0:02:38.2]} 11... Rc8 {[%clk 0:02:51.5]} 12. Re1 {[%clk 0:02:36.4]} 12...
h6 {[%clk 0:02:46.3]} 13. Ne5 {[%clk 0:02:33]} 13... Nxe5 {[%clk 0:02:40.7]} 14.
dxe5 {[%clk 0:02:33.9]} 14... Nd7 {[%clk 0:02:37.4]} 15. f4 {[%clk 0:02:27.8]}
15... e6 {[%clk 0:02:35.8]} 16. h4 {[%clk 0:02:26.8]} 16... Rc7 {[%clk
0:02:18.8]} 17. h5 {[%clk 0:02:18.8]} 17... g5 {[%clk 0:02:17.8]} 18. c4 {[%clk
0:02:15.6]} 18... gxf4 {[%clk 0:02:14]} 19. gxf4 {[%clk 0:02:09.4]} 19... Qh4
{[%clk 0:02:07.5]} 20. cxd5 {[%clk 0:02:01.6]} 20... Bxd5 {[%clk 0:02:00.6]} 21.
Bxd5 {[%clk 0:01:58.4]} 21... exd5 {[%clk 0:02:01.5]} 22. Qf3 {[%clk 0:01:33.4]}
22... Rc2 {[%clk 0:01:56.4]} 23. Bc1 {[%clk 0:01:32.5]} 23... Rfc8 {[%clk
0:01:51.8]} 24. Rf1 {[%clk 0:01:15.8]} 24... Nc5 {[%clk 0:01:42.9]} 25. Qh1
{[%clk 0:01:06.4]} 25... Qg4+ {[%clk 0:01:40.1]} 26. Qg2 {[%clk 0:01:06.2]}
26... Qxh5 {[%clk 0:01:39.3]} 27. Qf3 {[%clk 0:01:03.4]} 27... Qg6+ {[%clk
0:01:36.4]} 28. Qg2 {[%clk 0:01:03.1]} 28... Nd3 {[%clk 0:01:35.8]} 29. Qxg6
{[%clk 0:01:01.9]} 29... fxg6 {[%clk 0:01:36.7]} 30. a5 {[%clk 0:00:42.1]} 30...
Rxc1 {[%clk 0:01:32.8]} 31. axb6 {[%clk 0:00:39.3]} 31... axb6 {[%clk
0:01:29.8]} 32. Kg2 {[%clk 0:00:34.1]} 32... Rxa1 {[%clk 0:01:27.3]} 33. Rxa1
{[%clk 0:00:31.7]} 33... Nxf4+ {[%clk 0:01:27.8]} 34. Kf3 {[%clk 0:00:31.6]}
34... Nd3 {[%clk 0:01:27.6]} 35. Ra6 {[%clk 0:00:28.7]} 35... Nxe5+ {[%clk
0:01:26.7]} 36. Ke2 {[%clk 0:00:29]} 36... Re8 {[%clk 0:01:24]} 37. Kd1 {[%clk
0:00:26.5]} 37... Nd7 {[%clk 0:01:21.9]} 38. Ra7 {[%clk 0:00:26.5]} 38... Re7
{[%clk 0:01:21.3]} 39. Kc2 {[%clk 0:00:25.8]} 39... h5 {[%clk 0:01:20.9]} 40.
Nf3 {[%clk 0:00:26.2]} 40... Bf6 {[%clk 0:01:19.9]} 41. Ne1 {[%clk 0:00:25.7]}
41... g5 {[%clk 0:01:19.3]} 42. Nd3 {[%clk 0:00:26.3]} 42... g4 {[%clk
0:01:18.7]} 43. Nf4 {[%clk 0:00:26.8]} 43... Nc5 {[%clk 0:01:08.1]} 44. Ra8+
{[%clk 0:00:25.8]} 44... Kf7 {[%clk 0:01:07.6]} 45. Nxd5 {[%clk 0:00:26.3]}
45... g3 {[%clk 0:01:06.8]} 46. Nxe7 {[%clk 0:00:15.1]} 46... Bxe7 {[%clk
0:01:06]} 47. b4 {[%clk 0:00:11.2]} 47... Ne6 {[%clk 0:01:04.7]} 48. Kd3 {[%clk
0:00:08.3]} 48... Bxb4 {[%clk 0:01:03.9]} 49. Ke4 {[%clk 0:00:07.8]} 49... Bc5
{[%clk 0:01:02.3]} 50. Kf3 {[%clk 0:00:07]} 50... h4 {[%clk 0:01:02.2]} 51. Rh8
{[%clk 0:00:04.8]} 51... Ng5+ {[%clk 0:00:59.2]} 52. Kg2 {[%clk 0:00:05.2]}
52... h3+ {[%clk 0:00:52.8]} 53. Kxg3 {[%clk 0:00:04.4]} 53... Bd6+ {[%clk
0:00:50.9]} 54. Kg4 {[%clk 0:00:04.6]} 54... Kg7 {[%clk 0:00:49.2]} 55. Rd8
{[%clk 0:00:02.5]} 55... h2 {[%clk 0:00:44.8]} 56. Rd7+ {[%clk 0:00:03]} 56...
Nf7 {[%clk 0:00:43.8]} 0-1

[Event "Late-Titled-Tuesday-Blitz-February-27-2024"]
[Site "Chess.com"]
[Date "2024.02.27"]
[Round "4"]
[White "Journey_to_GrandMaster_YT"]
[Black "Felix-Rose"]
[Result "1-0"]
[WhiteElo "2500"]
[BlackElo "2271"]
[TimeControl "180+1"]
[EndTime "14:40:25 PST"]
[Termination "Journey_to_GrandMaster_YT won by resignation"]

1. d4 {[%clk 0:03:00]} 1... d5 {[%clk 0:02:59.7]} 2. c4 {[%clk 0:02:59.7]} 2...
e6 {[%clk 0:03:00.3]} 3. Nc3 {[%clk 0:02:59.8]} 3... Nf6 {[%clk 0:03:00.6]} 4.
cxd5 {[%clk 0:02:59.7]} 4... exd5 {[%clk 0:03:01.5]} 5. Bg5 {[%clk 0:03:00]}
5... c6 {[%clk 0:03:02.2]} 6. e3 {[%clk 0:03:00]} 6... Be7 {[%clk 0:03:02.7]} 7.
Bd3 {[%clk 0:03:00.3]} 7... Nbd7 {[%clk 0:03:03.5]} 8. Nge2 {[%clk 0:03:00.7]}
8... h6 {[%clk 0:03:03.8]} 9. Bh4 {[%clk 0:03:00.8]} 9... Nh5 {[%clk 0:03:04.4]}
10. Bxe7 {[%clk 0:02:58.7]} 10... Qxe7 {[%clk 0:03:05.3]} 11. Qc2 {[%clk
0:02:55.9]} 11... Nb6 {[%clk 0:03:05.4]} 12. h3 {[%clk 0:02:50.1]} 12... Be6
{[%clk 0:03:04.7]} 13. g4 {[%clk 0:02:45.9]} 13... Nf6 {[%clk 0:03:04.6]} 14.
Nf4 {[%clk 0:02:45.5]} 14... Bd7 {[%clk 0:03:03.9]} 15. O-O-O {[%clk 0:02:40.8]}
15... O-O-O {[%clk 0:03:03.7]} 16. Kb1 {[%clk 0:02:38.7]} 16... Kb8 {[%clk
0:03:04]} 17. Qb3 {[%clk 0:02:19.6]} 17... g5 {[%clk 0:03:02.7]} 18. Nfe2 {[%clk
0:02:19]} 18... h5 {[%clk 0:03:01.9]} 19. gxh5 {[%clk 0:02:05.2]} 19... Rxh5
{[%clk 0:02:59.5]} 20. Rdg1 {[%clk 0:01:59.6]} 20... Rdh8 {[%clk 0:02:52.2]} 21.
a4 {[%clk 0:01:51.9]} 21... g4 {[%clk 0:02:23.4]} 22. Nf4 {[%clk 0:01:47.3]}
22... R5h6 {[%clk 0:02:18.4]} 23. a5 {[%clk 0:01:27.4]} 23... Nc8 {[%clk
0:02:03]} 24. h4 {[%clk 0:01:15]} 24... Rxh4 {[%clk 0:01:48.5]} 25. Rxh4 {[%clk
0:01:15.9]} 25... Rxh4 {[%clk 0:01:48.7]} 26. Na4 {[%clk 0:01:16.6]} 26... Ne4
{[%clk 0:01:34.3]} 27. Bxe4 {[%clk 0:01:09.1]} 27... Qxe4+ {[%clk 0:01:17.8]}
28. Ka2 {[%clk 0:01:08.3]} 28... Nd6 {[%clk 0:01:17.2]} 29. Nc5 {[%clk
0:01:04.2]} 29... Qe8 {[%clk 0:01:14.7]} 30. Nxb7 {[%clk 0:00:33.4]} 30... Nxb7
{[%clk 0:01:10.4]} 31. a6 {[%clk 0:00:33.9]} 31... Qc8 {[%clk 0:01:05.5]} 32.
Nd3 {[%clk 0:00:33.2]} 32... Ka8 {[%clk 0:01:01.9]} 33. axb7+ {[%clk 0:00:33.3]}
33... Qxb7 {[%clk 0:01:02.8]} 34. Qa3 {[%clk 0:00:33.5]} 34... Rh8 {[%clk
0:00:52.2]} 35. Nc5 {[%clk 0:00:32.2]} 35... Qc7 {[%clk 0:00:50.7]} 36. Rc1
{[%clk 0:00:28.1]} 36... Bf5 {[%clk 0:00:48.4]} 37. Na6 {[%clk 0:00:26.9]} 37...
Qb7 {[%clk 0:00:45.5]} 38. Nb4 {[%clk 0:00:26.3]} 38... Rc8 {[%clk 0:00:44.9]}
39. Qa4 {[%clk 0:00:23.5]} 39... Bd7 {[%clk 0:00:44.6]} 40. Rc5 {[%clk
0:00:23.2]} 40... f5 {[%clk 0:00:41]} 41. Ka3 {[%clk 0:00:19.8]} 41... Qb6
{[%clk 0:00:37.7]} 42. Nd3 {[%clk 0:00:19.1]} 42... Rb8 {[%clk 0:00:36.4]} 43.
b4 {[%clk 0:00:17.7]} 43... Bc8 {[%clk 0:00:34.6]} 44. Rxc6 {[%clk 0:00:16.3]}
44... Qb5 {[%clk 0:00:33.2]} 45. Qxb5 {[%clk 0:00:15.2]} 45... Rxb5 {[%clk
0:00:33.8]} 46. Rxc8+ {[%clk 0:00:15]} 46... Kb7 {[%clk 0:00:34.6]} 47. Rc5
{[%clk 0:00:15.1]} 47... Rb6 {[%clk 0:00:35.1]} 48. Rxd5 {[%clk 0:00:15.1]} 1-0

[Event "Late-Titled-Tuesday-Blitz-February-27-2024"]
[Site "Chess.com"]
[Date "2024.02.27"]
[Round "4"]
[White "js20000"]
[Black "Firouzja2003"]
[Result "0-1"]
[WhiteElo "2831"]
[BlackElo "3069"]
[TimeControl "180+1"]
[EndTime "14:40:27 PST"]
[Termination "Firouzja2003 won by resignation"]

1. Nf3 {[%clk 0:03:00.9]} 1... Nf6 {[%clk 0:02:58.9]} 2. c4 {[%clk 0:03:00.4]}
2... e6 {[%clk 0:02:54.9]} 3. g3 {[%clk 0:02:59.8]} 3... d5 {[%clk 0:02:52.2]}
4. Bg2 {[%clk 0:02:59.9]} 4... d4 {[%clk 0:02:51.3]} 5. d3 {[%clk 0:02:58.3]}
5... Nc6 {[%clk 0:02:50.1]} 6. O-O {[%clk 0:02:56]} 6... Be7 {[%clk 0:02:48.7]}
7. e3 {[%clk 0:02:51.6]} 7... e5 {[%clk 0:02:48.1]} 8. exd4 {[%clk 0:02:48.1]}
8... exd4 {[%clk 0:02:47.9]} 9. Bg5 {[%clk 0:02:40.2]} 9... O-O {[%clk
0:02:43.5]} 10. Nbd2 {[%clk 0:02:38.5]} 10... Bf5 {[%clk 0:02:40.3]} 11. Qb3
{[%clk 0:02:28.5]} 11... Rb8 {[%clk 0:02:01.8]} 12. Rfe1 {[%clk 0:02:16]} 12...
h6 {[%clk 0:02:01.2]} 13. Bxf6 {[%clk 0:02:15.1]} 13... Bxf6 {[%clk 0:02:02.1]}
14. Ne4 {[%clk 0:02:14.2]} 14... Be7 {[%clk 0:02:02.1]} 15. Qb5 {[%clk
0:02:10.1]} 15... Bh7 {[%clk 0:01:57.8]} 16. a3 {[%clk 0:02:05]} 16... a6 {[%clk
0:01:42.8]} 17. Qd5 {[%clk 0:01:59.9]} 17... Re8 {[%clk 0:01:26.1]} 18. b4
{[%clk 0:01:53]} 18... Bf8 {[%clk 0:01:24]} 19. Rad1 {[%clk 0:01:16.7]} 19... a5
{[%clk 0:01:07.4]} 20. Qxd8 {[%clk 0:00:51.6]} 20... Rbxd8 {[%clk 0:01:05.8]}
21. b5 {[%clk 0:00:52.3]} 21... Nb8 {[%clk 0:00:56.9]} 22. Ra1 {[%clk
0:00:38.2]} 22... Nd7 {[%clk 0:00:56.7]} 23. Bf1 {[%clk 0:00:23.9]} 23... Nb6
{[%clk 0:00:41.6]} 24. Ned2 {[%clk 0:00:22.7]} 24... Rxe1 {[%clk 0:00:41.4]} 25.
Nxe1 {[%clk 0:00:18.6]} 25... Na4 {[%clk 0:00:41.7]} 26. Nb3 {[%clk 0:00:18.3]}
26... b6 {[%clk 0:00:35.2]} 27. Nf3 {[%clk 0:00:18.1]} 27... Nb2 {[%clk
0:00:32.4]} 28. Nbxd4 {[%clk 0:00:16.9]} 28... Nxd3 {[%clk 0:00:32.4]} 29. Nc6
{[%clk 0:00:16.6]} 29... Re8 {[%clk 0:00:32.4]} 30. Rd1 {[%clk 0:00:15.9]} 30...
Nc5 {[%clk 0:00:30.3]} 31. Nfe5 {[%clk 0:00:13.9]} 31... Bd6 {[%clk 0:00:28.6]}
32. Ng4 {[%clk 0:00:11.2]} 32... Bc2 {[%clk 0:00:26.3]} 33. Rc1 {[%clk
0:00:10.5]} 33... Be4 {[%clk 0:00:24]} 34. Ne3 {[%clk 0:00:10.2]} 34... Nb3
{[%clk 0:00:23.1]} 35. Rc3 {[%clk 0:00:09.9]} 35... Nd2 {[%clk 0:00:21.3]} 36.
Bg2 {[%clk 0:00:09.4]} 36... Nb1 {[%clk 0:00:19.4]} 37. Rb3 {[%clk 0:00:08.1]}
37... Nxa3 {[%clk 0:00:19.5]} 38. Bxe4 {[%clk 0:00:05]} 38... Rxe4 {[%clk
0:00:20.4]} 39. Nd5 {[%clk 0:00:05.9]} 39... Nxc4 {[%clk 0:00:18.7]} 40. Kg2
{[%clk 0:00:04.9]} 40... a4 {[%clk 0:00:18.3]} 41. Rc3 {[%clk 0:00:05.4]} 41...
a3 {[%clk 0:00:18.6]} 42. Rc2 {[%clk 0:00:05.7]} 42... Nb2 {[%clk 0:00:14.8]}
43. Nc3 {[%clk 0:00:05.4]} 43... Rc4 {[%clk 0:00:15]} 0-1

[Event "Late-Titled-Tuesday-Blitz-February-27-2024"]
[Site "Chess.com"]
[Date "2024.02.27"]
[Round "4"]
[White "FernandoArauzAlonso"]
[Black "egnfanclub"]
[Result "1/2-1/2"]
[WhiteElo "2584"]
[BlackElo "2407"]
[TimeControl "180+1"]
[EndTime "14:40:30 PST"]
[Termination "Game drawn - insufficient material"]

1. Nf3 {[%clk 0:02:58.7]} 1... Nf6 {[%clk 0:02:58.5]} 2. g3 {[%clk 0:02:57.9]}
2... b5 {[%clk 0:02:58.4]} 3. Bg2 {[%clk 0:02:57.7]} 3... Bb7 {[%clk 0:02:58.4]}
4. O-O {[%clk 0:02:58.2]} 4... e6 {[%clk 0:02:57.8]} 5. d3 {[%clk 0:02:57.1]}
5... c5 {[%clk 0:02:57.5]} 6. b3 {[%clk 0:02:54.7]} 6... Be7 {[%clk 0:02:55.8]}
7. Bb2 {[%clk 0:02:54.6]} 7... O-O {[%clk 0:02:54.3]} 8. c4 {[%clk 0:02:53.8]}
8... b4 {[%clk 0:02:53.7]} 9. Nbd2 {[%clk 0:02:52.9]} 9... d5 {[%clk 0:02:51.7]}
10. cxd5 {[%clk 0:02:45.6]} 10... exd5 {[%clk 0:02:51.3]} 11. Rc1 {[%clk
0:02:44.8]} 11... Qb6 {[%clk 0:02:46.1]} 12. Qc2 {[%clk 0:02:42.8]} 12... Nbd7
{[%clk 0:02:45.9]} 13. Rfe1 {[%clk 0:02:36.8]} 13... Rfe8 {[%clk 0:02:44.2]} 14.
Qb1 {[%clk 0:02:35.7]} 14... a5 {[%clk 0:02:42.9]} 15. Ne5 {[%clk 0:02:25.3]}
15... Nxe5 {[%clk 0:02:40]} 16. Bxe5 {[%clk 0:02:26.2]} 16... a4 {[%clk
0:02:20]} 17. Qb2 {[%clk 0:02:24.2]} 17... axb3 {[%clk 0:02:15.4]} 18. axb3
{[%clk 0:02:24.1]} 18... Ra3 {[%clk 0:02:09.2]} 19. Ra1 {[%clk 0:02:23.3]} 19...
Rea8 {[%clk 0:02:08.2]} 20. h3 {[%clk 0:02:15.6]} 20... Qa5 {[%clk 0:01:58.7]}
21. g4 {[%clk 0:02:07.3]} 21... Rxa1 {[%clk 0:01:57.9]} 22. Rxa1 {[%clk
0:02:07]} 22... Qxa1+ {[%clk 0:01:58]} 23. Qxa1 {[%clk 0:02:07.9]} 23... Rxa1+
{[%clk 0:01:57.7]} 24. Bxa1 {[%clk 0:02:08.8]} 24... Nd7 {[%clk 0:01:50.5]} 25.
f4 {[%clk 0:01:28.6]} 25... Bd6 {[%clk 0:01:48.7]} 26. e3 {[%clk 0:01:20.6]}
26... Ba6 {[%clk 0:01:48.5]} 27. Bxd5 {[%clk 0:01:13.6]} 27... Bxd3 {[%clk
0:01:48.1]} 28. Kf2 {[%clk 0:01:02.3]} 28... Nb6 {[%clk 0:01:47.7]} 29. Be4
{[%clk 0:00:57.2]} 29... Bxe4 {[%clk 0:01:39.4]} 30. Nxe4 {[%clk 0:00:58.1]}
30... Be7 {[%clk 0:01:40]} 31. Nd2 {[%clk 0:00:51.9]} 31... f6 {[%clk
0:01:34.9]} 32. e4 {[%clk 0:00:51.6]} 32... Kf7 {[%clk 0:01:34.7]} 33. Ke3
{[%clk 0:00:51.9]} 33... Ke6 {[%clk 0:01:34.6]} 34. f5+ {[%clk 0:00:46.9]} 34...
Kd7 {[%clk 0:01:25.1]} 35. g5 {[%clk 0:00:44.9]} 35... Kc6 {[%clk 0:01:17.4]}
36. g6 {[%clk 0:00:44.6]} 36... hxg6 {[%clk 0:01:15.4]} 37. fxg6 {[%clk
0:00:45.5]} 37... Kb5 {[%clk 0:01:15.5]} 38. Kd3 {[%clk 0:00:43]} 38... Bd6
{[%clk 0:01:06]} 39. Bxf6 {[%clk 0:00:34.9]} 39... Bf8 {[%clk 0:00:50.5]} 40.
Bb2 {[%clk 0:00:21.5]} 40... Kc6 {[%clk 0:00:49.5]} 41. Nc4 {[%clk 0:00:17.1]}
41... Nc8 {[%clk 0:00:49.3]} 42. h4 {[%clk 0:00:13.5]} 42... Ne7 {[%clk
0:00:49.5]} 43. h5 {[%clk 0:00:14]} 43... Kd7 {[%clk 0:00:48.5]} 44. h6 {[%clk
0:00:11.4]} 44... gxh6 {[%clk 0:00:41.8]} 45. g7 {[%clk 0:00:12.3]} 45... Bxg7
{[%clk 0:00:42.3]} 46. Bxg7 {[%clk 0:00:12.3]} 46... h5 {[%clk 0:00:42.9]} 47.
Bf6 {[%clk 0:00:10.8]} 47... Ng6 {[%clk 0:00:42.1]} 48. Ke3 {[%clk 0:00:09]}
48... Ke6 {[%clk 0:00:42.3]} 49. Bg5 {[%clk 0:00:09.5]} 49... h4 {[%clk
0:00:41.3]} 50. Kf3 {[%clk 0:00:08.6]} 50... h3 {[%clk 0:00:41.7]} 51. Kg3
{[%clk 0:00:08.3]} 51... Ne5 {[%clk 0:00:42.5]} 52. Nxe5 {[%clk 0:00:07.1]}
52... Kxe5 {[%clk 0:00:43.4]} 53. Be7 {[%clk 0:00:07.2]} 53... c4 {[%clk
0:00:42.8]} 54. Bxb4 {[%clk 0:00:05.8]} 54... cxb3 {[%clk 0:00:43]} 55. Kxh3
{[%clk 0:00:04.6]} 55... Kxe4 {[%clk 0:00:43.4]} 56. Ba3 {[%clk 0:00:05.1]}
56... Kd3 {[%clk 0:00:43.3]} 57. Bb2 {[%clk 0:00:05.7]} 57... Kc2 {[%clk
0:00:43.6]} 58. Bd4 {[%clk 0:00:05.9]} 58... Kb1 {[%clk 0:00:44.1]} 59. Be5
{[%clk 0:00:05.6]} 59... Ka2 {[%clk 0:00:45]} 60. Bd4 {[%clk 0:00:05.9]} 60...
b2 {[%clk 0:00:45.4]} 61. Bxb2 {[%clk 0:00:06.1]} 1/2-1/2

[Event "Late-Titled-Tuesday-Blitz-February-27-2024"]
[Site "Chess.com"]
[Date "2024.02.27"]
[Round "4"]
[White "ccccvhhhj"]
[Black "pr1105"]
[Result "1-0"]
[WhiteElo "2516"]
[BlackElo "2342"]
[TimeControl "180+1"]
[EndTime "14:40:33 PST"]
[Termination "ccccvhhhj won by resignation"]

1. d4 {[%clk 0:03:00.9]} 1... Nf6 {[%clk 0:02:44.3]} 2. Bg5 {[%clk 0:03:01]}
2... d5 {[%clk 0:02:38.6]} 3. Bxf6 {[%clk 0:02:58.6]} 3... gxf6 {[%clk
0:02:38.3]} 4. e3 {[%clk 0:02:57.5]} 4... c5 {[%clk 0:02:38.6]} 5. Nf3 {[%clk
0:02:48.3]} 5... Nc6 {[%clk 0:02:34.5]} 6. c3 {[%clk 0:02:47.4]} 6... Qb6 {[%clk
0:02:31.6]} 7. Qc2 {[%clk 0:02:40.5]} 7... e5 {[%clk 0:02:08.1]} 8. Be2 {[%clk
0:02:29.4]} 8... cxd4 {[%clk 0:01:57.2]} 9. exd4 {[%clk 0:02:30.3]} 9... exd4
{[%clk 0:01:54.5]} 10. O-O {[%clk 0:02:30]} 10... dxc3 {[%clk 0:01:34.1]} 11.
Nxc3 {[%clk 0:02:28.6]} 11... Be6 {[%clk 0:01:34.2]} 12. Bb5 {[%clk 0:02:11.8]}
12... Bg7 {[%clk 0:01:15.4]} 13. Rad1 {[%clk 0:02:02.7]} 13... Rd8 {[%clk
0:01:13.2]} 14. a3 {[%clk 0:01:59.5]} 14... O-O {[%clk 0:01:09.9]} 15. Bd3
{[%clk 0:01:59.9]} 15... h6 {[%clk 0:01:09.6]} 16. h3 {[%clk 0:01:53.9]} 16...
Ne5 {[%clk 0:01:02.6]} 17. Be2 {[%clk 0:01:52.9]} 17... Rc8 {[%clk 0:00:44.5]}
18. Nd4 {[%clk 0:01:49.1]} 18... Rfd8 {[%clk 0:00:41.4]} 19. Kh1 {[%clk
0:01:43.2]} 19... Nc4 {[%clk 0:00:40.5]} 20. Bxc4 {[%clk 0:01:39.5]} 20... Rxc4
{[%clk 0:00:38.8]} 21. Qd2 {[%clk 0:01:28.7]} 21... f5 {[%clk 0:00:35.3]} 22.
Nf3 {[%clk 0:01:23.5]} 22... Qb3 {[%clk 0:00:20.9]} 23. Rfe1 {[%clk 0:01:12.7]}
23... Kh7 {[%clk 0:00:17.7]} 24. Ne5 {[%clk 0:01:09.7]} 24... d4 {[%clk
0:00:15.1]} 25. Nxc4 {[%clk 0:01:08.4]} 25... Qxc4 {[%clk 0:00:15]} 26. Ne2
{[%clk 0:01:05.9]} 26... Rd7 {[%clk 0:00:14.8]} 27. Nf4 {[%clk 0:01:04.2]} 27...
a6 {[%clk 0:00:12.2]} 28. Rc1 {[%clk 0:01:02.6]} 28... Qb5 {[%clk 0:00:10.9]}
29. Nxe6 {[%clk 0:00:59.2]} 29... fxe6 {[%clk 0:00:11.8]} 30. Rxe6 {[%clk
0:00:59.8]} 30... d3 {[%clk 0:00:11.8]} 31. b4 {[%clk 0:00:56.3]} 31... Qd5
{[%clk 0:00:11.8]} 32. Rce1 {[%clk 0:00:51.8]} 32... Rc7 {[%clk 0:00:10.6]} 33.
R6e3 {[%clk 0:00:39.2]} 33... Bc3 {[%clk 0:00:08.8]} 34. Re7+ {[%clk 0:00:35.3]}
34... Kg8 {[%clk 0:00:07.3]} 35. Re8+ {[%clk 0:00:35.6]} 35... Kf7 {[%clk
0:00:07.1]} 36. Qxh6 {[%clk 0:00:27.5]} 36... Bxe1 {[%clk 0:00:07.5]} 37. Qf8+
{[%clk 0:00:26.4]} 37... Kg6 {[%clk 0:00:07.5]} 38. Rxe1 {[%clk 0:00:25.1]}
38... d2 {[%clk 0:00:07.4]} 39. Qe8+ {[%clk 0:00:25.4]} 39... Rf7 {[%clk
0:00:06.5]} 40. Rd1 {[%clk 0:00:22.6]} 40... Kg7 {[%clk 0:00:06.8]} 41. Qe3
{[%clk 0:00:22.2]} 41... Rd7 {[%clk 0:00:07.1]} 42. Qg3+ {[%clk 0:00:22.3]}
42... Kf6 {[%clk 0:00:07.2]} 43. Qc3+ {[%clk 0:00:22.9]} 43... Qd4 {[%clk
0:00:07.2]} 44. Qg3 {[%clk 0:00:22.3]} 44... Ke6 {[%clk 0:00:05.4]} 45. Qg6+
{[%clk 0:00:19.5]} 45... Qf6 {[%clk 0:00:05.8]} 46. Qg3 {[%clk 0:00:18.4]} 46...
Qc3 {[%clk 0:00:05.8]} 47. Qxc3 {[%clk 0:00:18]} 1-0

[Event "Late-Titled-Tuesday-Blitz-February-27-2024"]
[Site "Chess.com"]
[Date "2024.02.27"]
[Round "4"]
[White "nindjaxx8"]
[Black "chedimir"]
[Result "1-0"]
[WhiteElo "2676"]
[BlackElo "2453"]
[TimeControl "180+1"]
[EndTime "14:40:35 PST"]
[Termination "nindjaxx8 won on time"]

1. d4 {[%clk 0:03:00.9]} 1... Nf6 {[%clk 0:02:59.4]} 2. c4 {[%clk 0:03:00.1]}
2... c5 {[%clk 0:02:59.3]} 3. d5 {[%clk 0:02:59.6]} 3... b5 {[%clk 0:02:59.2]}
4. cxb5 {[%clk 0:03:00.5]} 4... a6 {[%clk 0:02:59.1]} 5. e3 {[%clk 0:03:00.1]}
5... axb5 {[%clk 0:02:57.7]} 6. Bxb5 {[%clk 0:02:58.1]} 6... Qa5+ {[%clk
0:02:56.7]} 7. Nc3 {[%clk 0:02:57.9]} 7... Bb7 {[%clk 0:02:56.7]} 8. Bd2 {[%clk
0:02:56.1]} 8... e6 {[%clk 0:02:53.4]} 9. Nf3 {[%clk 0:02:53.5]} 9... Qb6 {[%clk
0:02:45.8]} 10. dxe6 {[%clk 0:02:45]} 10... fxe6 {[%clk 0:02:45.3]} 11. O-O
{[%clk 0:02:45.1]} 11... Be7 {[%clk 0:02:44.6]} 12. a4 {[%clk 0:02:43.6]} 12...
O-O {[%clk 0:02:43.4]} 13. Rc1 {[%clk 0:02:42.5]} 13... d5 {[%clk 0:02:42.2]}
14. Ne2 {[%clk 0:02:38.8]} 14... Nc6 {[%clk 0:02:33.9]} 15. Bc3 {[%clk
0:02:34.4]} 15... Ne4 {[%clk 0:02:32.3]} 16. Nf4 {[%clk 0:02:30.2]} 16... Nxc3
{[%clk 0:02:05.7]} 17. Rxc3 {[%clk 0:02:15.1]} 17... d4 {[%clk 0:01:52.2]} 18.
exd4 {[%clk 0:02:06.4]} 18... Rxf4 {[%clk 0:01:38.1]} 19. dxc5 {[%clk
0:02:06.4]} 19... Qc7 {[%clk 0:01:23.3]} 20. Rd3 {[%clk 0:01:38.4]} 20... Ne5
{[%clk 0:01:05.5]} 21. Nxe5 {[%clk 0:01:34.3]} 21... Qxe5 {[%clk 0:01:05.2]} 22.
Re1 {[%clk 0:01:33.9]} 22... Qxc5 {[%clk 0:01:00.3]} 23. Qe2 {[%clk 0:01:32.9]}
23... Bd5 {[%clk 0:00:46.4]} 24. b4 {[%clk 0:01:23.7]} 24... Qd6 {[%clk
0:00:30.3]} 25. f3 {[%clk 0:00:52.3]} 25... Raf8 {[%clk 0:00:29.1]} 26. h3
{[%clk 0:00:34.8]} 26... Rxb4 {[%clk 0:00:26.2]} 27. Red1 {[%clk 0:00:29.4]}
27... Bd8 {[%clk 0:00:16.8]} 28. g4 {[%clk 0:00:10.1]} 28... Bb6+ {[%clk
0:00:13.8]} 29. Kh1 {[%clk 0:00:08.2]} 29... Bc7 {[%clk 0:00:13.2]} 30. Qg2
{[%clk 0:00:04.8]} 30... Qf4 {[%clk 0:00:11.8]} 31. Rf1 {[%clk 0:00:03.3]} 31...
Bc4 {[%clk 0:00:09.7]} 32. Bxc4 {[%clk 0:00:03.2]} 32... Rxc4 {[%clk 0:00:09.4]}
33. Re1 {[%clk 0:00:03.9]} 33... Rc1 {[%clk 0:00:08.6]} 34. Rdd1 {[%clk
0:00:02.9]} 34... Rxd1 {[%clk 0:00:07.6]} 35. Rxd1 {[%clk 0:00:03.2]} 35... Qxf3
{[%clk 0:00:04.5]} 36. Qxf3 {[%clk 0:00:03.3]} 36... Rxf3 {[%clk 0:00:04.2]} 37.
Rc1 {[%clk 0:00:04.2]} 37... Rxh3+ {[%clk 0:00:01.9]} 38. Kg2 {[%clk 0:00:03.8]}
38... Rh2+ {[%clk 0:00:01.3]} 39. Kg1 {[%clk 0:00:03.6]} 1-0